[Event "13th All African Mixed Team Rapid-ch 202"]
[Site "Accra"]
[Date "2024.03.09"]
[Round "1.16"]
[White "Tsinjoviniavo, Aina Mahasambatra"]
[Black "Ayiku, Angela Naa Amerley"]
[Result "0-1"]
[ECO "B27"]
[WhiteElo "1681"]
[BlackElo "1629"]
[Annotator "NA RC"]
[PlyCount "143"]
[EventDate "2024.03.07"]
[EventType "rapid"]
[EventCountry "GHA"]
[SourceTitle "playchess.com"]
[Source "ChessBase"]
[SourceQuality "1"]
[TimeControl "900+10"]

1. e4 {[%emt 0:00:03]} c5 {[%emt 0:00:02]} 2. Nf3 {[%emt 0:00:01]} g6 {[%emt 0:00:02]} 3. d4 {[%emt 0:00:02]} cxd4 {[%emt 0:00:09]} 4. Nxd4 {[%emt 0:00:03]} Bg7 {[%emt 0:00:03]} 5. Nc3 {[%emt 0:00:03]} d6 {[%emt 0:00:04]} 6. Bb5+ {[%emt 0:15:58]} Nd7 {[%emt 0:00:10]} 7. O-O {[%emt 0:00:00]} Ngf6 {[%emt 0:00:05]} 8. Re1 {[%emt 0:00:00]} O-O {[%emt 0:00:06]} 9. Bg5 {[%emt 0:00:00]} Qc7 {[%emt 0:01:07]} 10. h3 {[%emt 0:00:00]} Ne5 {[%emt 0:00:09]} 11. Nf3 {[%emt 0:00:00]} Nc6 {[%emt 0:00:21]} 12. Qd2 {[%emt 0:00:00]} a6 {[%emt 0:01:07]} 13. Bd3 {[%emt 0:00:00]} Be6 {[%emt 0:00:44]} 14. a3 {[%emt 0:00:00]} Rad8 {[%emt 0:01:07]} 15. Bh6 {[%emt 0:00:00]} d5 {[%emt 0:00:14]} 16. exd5 {[%emt 0:00:00]} Bxd5 {[%emt 0:01:39]} 17. Nxd5 {[%emt 0:00:00]} Rxd5 {[%emt 0:00:53]} 18. Bf4 {[%emt 0:00:00]} Qd8 {[%emt 0:00:52]} 19. Qe2 {[%emt 0:00:00]} Nh5 {[%emt 0:00:37]} 20. Bh2 {[%emt 0:00:00]} Bxb2 {[%emt 0:01:57]} 21. Rab1 {[%emt 0:00:00]} Bc3 {[%emt 0:00:02]} 22. Red1 {[%emt 0:00:00]} b5 {[%emt 0:00:07]} 23. Be4 {[%emt 0:00:00]} Nd4 {[%emt 0:00:30]} 24. Qd3 {[%emt 0:00:00]} Nxf3+ {[%emt 0:01:08]} 25. Qxf3 {[%emt 0:00:00]} Rxd1+ {[%emt 0:00:11]} 26. Rxd1 {[%emt 0:00:00]} Qc8 {[%emt 0:00:03]} 27. Bb7 {[%emt 0:00:00]} Qc5 {[%emt 0:00:24]} 28. Bxa6 {[%emt 0:00:00]} Qxa3 {[%emt 0:00:34]} 29. Bxb5 {[%emt 0:00:00]} Qb4 {[%emt 0:05:33]} 30. Bd3 {[%emt 0:00:00]} Rd8 {[%emt 0:00:00]} 31. g4 {[%emt 0:00:00]} Nf6 {[%emt 0:00:00]} 32. g5 {[%emt 0:00:00]} Nh5 {[%emt 0:00:00]} 33. Kg2 {[%emt 0:00:00]} Qh4 {[%emt 0:00:00]} 34. Qe3 {[%emt 0:00:00]} Bd4 {[%emt 0:00:00]} 35. Bg3 {[%emt 0:00:00]} Bxe3 {[%emt 0:00:00]} 36. Bxh4 {[%emt 0:00:00]} Bc5 {[%emt 0:00:00]} 37. Kf3 {[%emt 0:00:07]} Ng7 {[%emt 0:00:00]} 38. Bg3 {[%emt 0:00:15]} Ne6 {[%emt 0:00:00]} 39. h4 {[%emt 0:05:08]} Nd4+ {[%emt 0:00:00]} 40. Kg4 {[%emt 0:00:00]} Nc6 {[%emt 0:00:00]} 41. Rb1 {[%emt 0:00:00]} Bd4 {[%emt 0:00:00]} 42. Rb7 {[%emt 0:00:00]} e6 {[%emt 0:00:24]} 43. Rc7 {[%emt 0:00:00]} Ne5+ {[%emt 0:00:03]} 44. Bxe5 {[%emt 0:00:00]} Bxe5 {[%emt 0:00:02]} 45. Rc6 {[%emt 0:00:00]} Rb8 {[%emt 0:00:16]} 46. f4 {[%emt 0:00:00]} Bg7 {[%emt 0:00:08]} 47. c4 {[%emt 0:00:00]} Rb2 {[%emt 0:00:04]} 48. Kg3 {[%emt 0:00:00]} Rb3 {[%emt 0:00:06]} 49. Rd6 {[%emt 0:00:00]} Bf8 {[%emt 0:00:03]} 50. Rd8 {[%emt 0:00:00]} Kg7 {[%emt 0:00:03]} 51. Kg4 {[%emt 0:00:00]} Be7 {[%emt 0:00:02]} 52. Rd7 {[%emt 0:00:00]} Bc5 {[%emt 0:00:04]} 53. Be4 {[%emt 0:00:00]} Bf2 {[%emt 0:00:10]} 54. Rd3 {[%emt 0:00:00]} Rb1 {[%emt 0:00:08]} 55. Kf3 {[%emt 0:00:13]} Bxh4 {[%emt 0:00:05]} 56. Rd2 {[%emt 0:00:54]} Rb3+ {[%emt 0:00:15]} 57. Rd3 {[%emt 0:00:27]} Rb4 {[%emt 0:00:10]} 58. Rc3 {[%emt 0:00:07]} Rb2 {[%emt 0:00:04]} 59. Rc2 {[%emt 0:00:28]} Rb3+ {[%emt 0:00:06]} 60. Kg4 {[%emt 0:00:23]} Be1 {[%emt 0:00:02]} 61. Bf3 {[%emt 0:00:02]} Ba5 {[%emt 0:00:04]} 62. c5 {[%emt 0:00:03]} Bc7 {[%emt 0:00:06]} 63. c6 {[%emt 0:00:02]} Rb4 {[%emt 0:00:01]} 64. Kg3 {[%emt 0:00:22]} Rxf4 {[%emt 0:00:03]} 65. Kg2 {[%emt 0:00:10]} Rf5 {[%emt 0:00:09]} 66. Rb2 {[%emt 0:00:10]} Rxg5+ {[%emt 0:00:03]} 67. Kf2 {[%emt 0:00:01]} Rc5 {[%emt 0:00:04]} 68. Rb7 {[%emt 0:00:02]} Be5 {[%emt 0:00:06]} 69. Ke3 {[%emt 0:00:07]} Rc3+ {[%emt 0:00:22]} 70. Ke4 {[%emt 0:00:02]} Bd6 {[%emt 0:00:08]} 71. Rd7 {[%emt 0:00:02]} Rxc6 {[%emt 0:00:04]} 72. Kd4 {[%emt 0:00:00]} 0-1

[Event "13th All African Mixed Team Rapid-ch 202"]
[Site "Accra"]
[Date "2024.03.09"]
[Round "1.17"]
[White "Zhemba, Jemusse"]
[Black "Pedro Manuel Envo Engonga Avom"]
[Result "1-0"]
[ECO "C27"]
[WhiteElo "2226"]
[BlackElo "1702"]
[Annotator "RC"]
[PlyCount "48"]
[EventDate "2024.03.07"]
[EventType "rapid"]
[EventCountry "GHA"]
[SourceTitle "playchess.com"]
[Source "ChessBase"]
[SourceQuality "1"]
[TimeControl "900+10"]

1. e4 {[%emt 0:00:05]} e5 {[%emt 0:00:04]} 2. Bc4 {[%emt 0:00:07]} Nf6 {[%emt 0:00:49]} 3. d3 {[%emt 0:00:03]} Bc5 {[%emt 0:00:08]} 4. Nc3 {[%emt 0:00:12]} d6 {[%emt 0:00:06]} 5. f4 {[%emt 0:00:10]} Bxg1 {[%emt 0:02:05]} 6. Rxg1 {[%emt 0:00:06]} Bg4 {[%emt 0:00:01]} 7. Qd2 {[%emt 0:00:07]} Be6 {[%emt 0:00:25]} 8. f5 {[%emt 0:01:21]} Bxc4 {[%emt 0:00:33]} 9. dxc4 {[%emt 0:00:03]} Nc6 {[%emt 0:00:52]} 10. g4 {[%emt 0:00:32]} Nd4 {[%emt 0:00:18]} 11. Qf2 {[%emt 0:00:02]} Qd7 {[%emt 0:00:59]} 12. Be3 {[%emt 0:00:10]} c5 {[%emt 0:00:57]} 13. g5 {[%emt 0:00:08]} Ng8 {[%emt 0:01:50]} 14. Nd5 {[%emt 0:00:03]} O-O-O {[%emt 0:00:27]} 15. c3 {[%emt 0:00:16]} Nc6 {[%emt 0:00:24]} 16. f6 {[%emt 0:00:02]} g6 {[%emt 0:00:22]} 17. O-O-O {[%emt 0:00:04]} h6 {[%emt 0:00:02]} 18. Bxc5 {[%emt 0:00:13]} Qe6 {[%emt 0:01:07]} 19. Bxa7 {[%emt 0:00:17]} Kd7 {[%emt 0:00:46]} 20. Qb6 {[%emt 0:00:07]} Qh3 {[%emt 0:04:21]} 21. Qxb7+ {[%emt 0:00:33]} Ke8 {[%emt 0:00:05]} 22. Qxc6+ {[%emt 0:00:14]} Kf8 {[%emt 0:01:02]} 23. Bb8 {[%emt 0:00:30]} Nxf6 {[%emt 0:00:47]} 24. Bxd6+ {[%emt 0:00:11]} Kg7 {[%emt 0:00:00]} 1-0

[Event "13th All African Mixed Team Rapid-ch 202"]
[Site "Accra"]
[Date "2024.03.09"]
[Round "2.1"]
[White "Arab, Adlane"]
[Black "Mhango, Banele"]
[Result "1/2-1/2"]
[ECO "E61"]
[WhiteElo "2477"]
[BlackElo "2193"]
[Annotator "TA"]
[PlyCount "107"]
[EventDate "2024.03.07"]
[EventType "rapid"]
[EventCountry "GHA"]
[SourceTitle "playchess.com"]
[Source "ChessBase"]
[SourceQuality "1"]
[TimeControl "900+10"]

{[%evp 24,107,48,33,29,32,79,-13,10,16,18,31,38,12,39,30,33,14,34,-2,48,35,57,27,49,57,52,40,70,68,75,69,124,9,20,27,27,14,9,0,0,0,154,0,0,-116,-108,-187,-191,-190,-200,-186,-207,-241,-244,-253,-227,-234,-199,-323,-6,-183,-195,-261,-265,-338,-319,-398,-374,-391,-378,-395,-395,-396,-389,-350,-175,-176,-183,-182,0,-114,0,-173,0,-95]} 1. d4 {[%emt 0:00:03]} Nf6 {[%emt 0:00:02]} 2. c4 {[%emt 0:00:01]} g6 {[%emt 0:00:03]} 3. Nc3 {[%emt 0:00:02]} Bg7 {[%emt 0:00:02]} 4. Nf3 {[%emt 0:00:04]} O-O {[%emt 0:00:07]} 5. Bf4 {[%emt 0:00:02]} d6 {[%emt 0:00:03]} 6. e3 {[%emt 0:00:04]} Bg4 {[%emt 0:00:16]} 7. Be2 {[%emt 0:00:10]} Nfd7 {[%emt 0:00:05]} 8. O-O {[%emt 0:00:23]} Nc6 {[%emt 0:00:21]} 9. d5 {[%emt 0:00:31]} Bxf3 {[%emt 0:00:26]} 10. Bxf3 {[%emt 0:00:05]} Nce5 {[%emt 0:00:02]} 11. Be2 {[%emt 0:00:08]} a5 {[%emt 0:00:05]} 12. e4 {[%emt 0:00:25]} Nc5 {[%emt 0:00:27]} 13. Qc2 {[%emt 0:00:49]} Ned7 {[%emt 0:00:21]} 14. f3 {[%emt 0:00:16]} e5 {[%emt 0:01:02]} (14... e6 $14 {feels stronger.}) 15. dxe6 {[%emt 0:00:22]} (15. Be3 $16) 15... Nxe6 {[%emt 0:00:45]} 16. Be3 {[%emt 0:00:02]} Bd4 {[%emt 0:02:22]} 17. Bxd4 {[%emt 0:00:55]} Nxd4 {[%emt 0:00:01]} 18. Qd2 {[%emt 0:00:03]} Ne6 {[%emt 0:00:12]} 19. f4 {[%emt 0:00:44]} Nec5 {[%emt 0:00:13]} 20. Bd3 {[%emt 0:01:20]} c6 {[%emt 0:02:21]} 21. Kh1 {[%emt 0:00:47]} Qe7 {[%emt 0:01:22]} (21... Nxd3 $11 22. Qxd3 Nc5) 22. Bc2 $14 {[%emt 0:00:13]} Nb6 {[%emt 0:00:29]} 23. Qd4 {[%emt 0:00:32]} Rfd8 {[%emt 0:00:37]} 24. Rad1 {[%emt 0:00:50]} a4 {[%emt 0:00:06]} 25. h3 {[%emt 0:00:50]} Rd7 {[%emt 0:02:05]} 26. b4 {[%emt 0:00:58]} axb3 {[%emt 0:00:02]} 27. axb3 {[%emt 0:00:01]} Nc8 {[%emt 0:01:06]} (27... Rc7 $14) 28. Ra1 {[%emt 0:00:45]} (28. b4 $16 Ne6 29. Qf2) 28... Rxa1 $11 {[%emt 0:00:06]} 29. Rxa1 {[%emt 0:00:01]} Ne6 {[%emt 0:00:07]} 30. Qd2 {[%emt 0:00:31]} Qf6 {[%emt 0:00:15]} 31. Ra8 {[%emt 0:01:31]} Rd8 $1 {[%emt 0:00:08]} 32. Ne2 {[%emt 0:00:41]} Qb2 $2 {[%emt 0:00:25]} (32... Nc7 $11 33. Ra2 (33. Rb8 $2 Qa1+ 34. Ng1 Qa7 $19) 33... Ne6) 33. f5 $2 {[%emt 0:00:41]} ({White must play} 33. Nc3 $1 $16 Nc5 (33... Nxf4 $2 34. Ra2 $18) 34. Ra2 Nxb3 35. Qe1) 33... Nc7 $11 {[%emt 0:00:11]} 34. Rb8 {[%emt 0:00:39]} (34. Ra5 $11 b6 35. Ra4) 34... Qa1+ $17 {[%emt 0:01:05]} 35. Kh2 {[%emt 0:00:20]} (35. Ng1 $17 {is a better defense.} Qa7 36. Rxc8 (36. Qg5 $2 Re8 $19) 36... Rxc8 37. Qxd6) 35... Qa7 $19 {[%emt 0:00:03]} 36. Rxc8 {[%emt 0:00:19]} Rxc8 {[%emt 0:00:01]} 37. Qxd6 {[%emt 0:00:03]} Ne8 {[%emt 0:00:24]} 38. Qf4 {[%emt 0:00:50] [#]} Qa2 $1 {[%emt 0:00:20]} 39. Qd2 {[%emt 0:00:31]} Qb2 {[%emt 0:00:24]} 40. Nc3 {[%emt 0:00:06]} Nd6 {[%emt 0:01:23]} 41. f6 {[%emt 0:00:22]} (41. h4 $142) 41... Kh8 $2 {[%emt 0:00:45]} (41... Re8 42. Qh6) ({Better is} 41... Ne8 $19 {[%cal Oc8a8] White must now prevent ...Ra8!} 42. e5 Nc7) 42. e5 $2 {[%emt 0:00:27]} (42. h4 $1 $11) 42... Nf5 $19 {[%emt 0:00:16]} 43. e6 {[%emt 0:01:06]} (43. Qd7 Ra8 44. Qd2 c5 $19) (43. g4 $142 Ne3 44. Qxe3 Qxc2+ 45. Kg1) 43... fxe6 $19 {[%emt 0:00:10]} 44. Qd7 {[%emt 0:00:45]} Rg8 {[%emt 0:00:31]} 45. f7 {[%emt 0:00:25]} Rf8 {[%emt 0:00:03]} (45... Qxc3 46. fxg8=Q+ (46. fxg8=B Qe5+ 47. Kg1 Qd4+ 48. Qxd4+ Nxd4 $11) (46. fxg8=R+ Kxg8 47. Qxe6+ Kg7 $11) 46... Kxg8 47. Qxe6+ Kg7 48. Bxf5 gxf5 49. Qxf5 Qxb3 50. Qg4+ Kf7 51. Qh5+ Kg7 52. Qe5+ Kg6 53. Qe6+ Kg7 54. Qe7+ Kg6 55. Qe6+ Kg7 56. Qe7+ Kg6 57. Qe6+ $11) 46. Bxf5 {[%emt 0:00:17]} Qxc3 {[%emt 0:00:08]} 47. Bxe6 {[%emt 0:00:01]} Qe5+ {[%emt 0:00:01]} ({And not} 47... Qxb3 48. Qd4#) 48. Kh1 {[%emt 0:00:02]} Kg7 {[%emt 0:00:30]} 49. c5 {[%emt 0:00:01]} Kf6 {[%emt 0:00:02]} (49... Qxc5 50. Qxb7 Qc1+ 51. Kh2 $11) (49... Qf6 $142 {And now ...Rd8 would win.} 50. Qe8 Qf1+ 51. Kh2 Qf4+ 52. Kh1 Qc1+ 53. Kh2 Qxc5) 50. Bc4 $19 {[%emt 0:00:07] [#]} Qe1+ $1 {[%emt 0:00:13]} ({Stronger than} 50... Qxc5 51. Qxb7 Qd6 52. Qa7 $15) 51. Kh2 {[%emt 0:00:02]} Qe5+ {[%emt 0:00:01]} ({Black should try} 51... Qe7 $19 52. Qd4+ Qe5+ 53. Qxe5+ Kxe5) 52. Kh1 $1 $17 {[%emt 0:00:01]} Qe1+ {[%emt 0:00:08]} (52... Qxc5 53. Qxb7 Qd6 54. Qa7) (52... Rb8 $17 53. f8=B Rxf8 54. Qxb7 Qxc5 55. Qxh7 Qe5) 53. Kh2 $19 {[%emt 0:00:02]} Qe5+ {[%emt 0:00:01]} (53... Qe7 $19 54. Qd4+ Qe5+ 55. Qxe5+ Kxe5) 54. Kh1 $1 {[%emt 0:00:13]} 1/2-1/2

[Event "13th All African Mixed Team Rapid-ch 202"]
[Site "Accra"]
[Date "2024.03.09"]
[Round "2.2"]
[White "February, Jesse Nikki"]
[Black "Nassr, Lina"]
[Result "1-0"]
[ECO "D00"]
[WhiteElo "1920"]
[BlackElo "2080"]
[Annotator "RC"]
[PlyCount "91"]
[EventDate "2024.03.07"]
[EventType "rapid"]
[EventCountry "GHA"]
[SourceTitle "playchess.com"]
[Source "ChessBase"]
[SourceQuality "1"]
[TimeControl "900+10"]

1. d4 {[%emt 0:00:03]} Nf6 {[%emt 0:00:04]} 2. Bf4 {[%emt 0:00:03]} e6 {[%emt 0:00:03]} 3. Nc3 {[%emt 0:00:03]} d5 {[%emt 0:00:19]} 4. e3 {[%emt 0:00:06]} a6 {[%emt 0:00:08]} 5. Bd3 {[%emt 0:00:45]} c5 {[%emt 0:00:26]} 6. Nf3 {[%emt 0:00:38]} Nc6 {[%emt 0:00:25]} 7. Qd2 {[%emt 0:01:41]} c4 {[%emt 0:01:37]} 8. Be2 {[%emt 0:00:02]} Bb4 {[%emt 0:00:08]} 9. Bg5 {[%emt 0:00:27]} h6 {[%emt 0:00:53]} 10. Bxf6 {[%emt 0:00:03]} Qxf6 {[%emt 0:00:02]} 11. O-O {[%emt 0:01:11]} O-O {[%emt 0:00:32]} 12. a3 {[%emt 0:01:16]} Ba5 {[%emt 0:00:17]} 13. b4 {[%emt 0:00:35]} cxb3 {[%emt 0:00:13]} 14. cxb3 {[%emt 0:00:02]} Bd7 {[%emt 0:01:02]} 15. b4 {[%emt 0:00:52]} Bc7 {[%emt 0:00:07]} 16. Rac1 {[%emt 0:01:08]} Bd6 {[%emt 0:02:35]} 17. Bd3 {[%emt 0:00:30]} b5 {[%emt 0:00:21]} 18. Bb1 {[%emt 0:00:50]} g6 {[%emt 0:00:44]} 19. Rfe1 {[%emt 0:01:47]} Na7 {[%emt 0:01:52]} 20. Qa2 {[%emt 0:00:52]} Rac8 {[%emt 0:01:00]} 21. e4 {[%emt 0:01:24]} Bf4 {[%emt 0:00:32]} 22. Rc2 {[%emt 0:00:24]} dxe4 {[%emt 0:00:48]} 23. Nxe4 {[%emt 0:00:03]} Qd8 {[%emt 0:00:27]} 24. Nc5 {[%emt 0:00:21]} Re8 {[%emt 0:01:49]} 25. Rce2 {[%emt 0:00:46]} Bc6 {[%emt 0:00:48]} 26. Be4 {[%emt 0:00:02]} Bd6 {[%emt 0:01:45]} 27. Qc2 {[%emt 0:01:51]} Bxc5 {[%emt 0:00:16]} 28. dxc5 {[%emt 0:00:25]} Qf6 {[%emt 0:00:12]} 29. Rd2 {[%emt 0:00:51]} Red8 {[%emt 0:00:07]} 30. Bxc6 {[%emt 0:00:24]} Nxc6 {[%emt 0:00:02]} 31. Rxd8+ {[%emt 0:00:18]} Rxd8 {[%emt 0:00:02]} 32. h3 {[%emt 0:00:08]} e5 {[%emt 0:00:35]} 33. Rd1 {[%emt 0:00:20]} Rxd1+ {[%emt 0:00:03]} 34. Qxd1 {[%emt 0:00:01]} e4 {[%emt 0:00:14]} 35. Nd2 {[%emt 0:00:07]} Qd4 {[%emt 0:00:06]} 36. Qe2 {[%emt 0:00:01]} Qa1+ {[%emt 0:00:13]} 37. Kh2 {[%emt 0:00:06]} Qxa3 {[%emt 0:00:15]} 38. Qxe4 {[%emt 0:00:02]} Qxb4 {[%emt 0:00:14]} 39. Qxc6 {[%emt 0:00:22]} Qxd2 {[%emt 0:00:07]} 40. Qe8+ {[%emt 0:00:03]} Kg7 {[%emt 0:00:03]} 41. Qe5+ {[%emt 0:00:01]} Kg8 {[%emt 0:00:09]} 42. c6 {[%emt 0:00:34]} Qc2 {[%emt 0:00:15]} 43. Qd6 {[%emt 0:00:24]} b4 {[%emt 0:00:11]} 44. c7 {[%emt 0:00:02]} b3 {[%emt 0:00:15]} 45. Qd8+ {[%emt 0:00:10]} Kg7 {[%emt 0:00:08]} 46. c8=Q {[%emt 0:00:07]} 1-0

[Event "13th All African Mixed Team Rapid-ch 202"]
[Site "Accra"]
[Date "2024.03.09"]
[Round "2.3"]
[White "Frempong-Smart Daniel"]
[Black "Silva, David"]
[Result "0-1"]
[ECO "E63"]
[WhiteElo "1877"]
[BlackElo "2358"]
[Annotator "TA"]
[PlyCount "104"]
[EventDate "2024.03.07"]
[EventType "rapid"]
[EventCountry "GHA"]
[SourceTitle "playchess.com"]
[Source "ChessBase"]
[SourceQuality "1"]
[TimeControl "900+10"]

{[%evp 25,104,17,35,-103,-93,-137,-143,-156,-149,-152,-127,-171,-172,-180,-175,-160,-163,-174,-135,-161,-182,-185,-185,-180,-170,-208,-209,-209,-114,-135,-126,-108,-112,-193,-191,-214,-208,-239,-232,-230,-221,-263,-248,-400,-402,-547,-544,-526,-504,-612,-587,-1162,-1160,-1060,-808,-790,-783,-971,-929,-29991,-5828,-5039,-4818,-4818,-4280,-29972,-29973,-29973,-29972,-29964,-6072,-29975,-29975,-8059,-7146,-29993,-29991,-29991,-29992,-29992,-570]} 1. d4 {[%emt 0:00:03]} Nf6 {[%emt 0:00:01]} 2. Nf3 {[%emt 0:00:03]} g6 {[%emt 0:00:01]} 3. g3 {[%emt 0:00:02]} Bg7 {[%emt 0:00:01]} 4. Bg2 {[%emt 0:00:02]} O-O {[%emt 0:00:01]} 5. O-O {[%emt 0:00:04]} d6 {[%emt 0:00:09]} 6. c4 {[%emt 0:00:03]} Nc6 {[%emt 0:00:10]} 7. Nc3 {[%emt 0:00:09]} a6 {[%emt 0:00:02]} 8. e4 {[%emt 0:00:14]} Bg4 {[%emt 0:00:02]} 9. h3 {[%emt 0:00:04]} Bxf3 {[%emt 0:00:02]} 10. Bxf3 {[%emt 0:00:03]} Nd7 {[%emt 0:00:00]} 11. Be3 {[%emt 0:00:17]} e5 {[%emt 0:00:01]} 12. d5 {[%emt 0:02:55]} Nd4 {[%emt 0:00:02]} 13. Bg2 {[%emt 0:00:38]} c5 {[%emt 0:00:02]} 14. f4 {[%emt 0:00:23]} (14. dxc6 $14 {bleibt weiter vorne.} bxc6 15. b4) 14... f5 {[%emt 0:00:05]} 15. exf5 {[%emt 0:00:13]} Nxf5 {[%emt 0:00:04]} 16. Bf2 {[%emt 0:00:22] Schwarz steht deutlich besser.} exf4 {[%emt 0:00:02]} 17. gxf4 {[%emt 0:00:01]} Nf6 {[%emt 0:00:03][%cal Ob7b5]} 18. Ne4 {[%emt 0:00:22]} Nh5 {[%emt 0:00:04]} 19. Ng5 {[%emt 0:00:08]} Nxf4 {[%emt 0:00:08] Ein dynamisches Springerpaar.} 20. Ne6 {[%emt 0:00:09]} Nxe6 {[%emt 0:00:02]} 21. dxe6 {[%emt 0:00:02]} Qe7 {[%emt 0:00:07][%cal Oa8e8]} 22. Qd5 {[%emt 0:12:33]} Rab8 {[%cal Ob7b5]} (22... Bxb2 $2 23. Rab1 Bf6 24. Rxb7 $18) 23. Rab1 {[%emt 0:00:00]} a5 {[%emt 0:00:36]} 24. b3 {[%emt 0:00:00]} Kh8 {[%emt 0:00:02]} 25. Rbd1 {[%emt 0:00:00]} b6 {[%emt 0:00:07]} 26. Rfe1 {[%emt 0:00:00]} Rbd8 {[%emt 0:00:48]} ({Besser ist} 26... Bc3 $19 27. Re4 Rbe8) 27. Qb7 $17 {[%emt 0:00:00]} Qxb7 {[%emt 0:01:52]} 28. Bxb7 {[%emt 0:00:00] Droht e7 und aus.} Be5 {[%emt 0:00:55]} 29. e7 {[%emt 0:00:00]} Nxe7 $19 {[%emt 0:01:12]} 30. Bh4 {[%emt 0:00:00] [#]} Rde8 {[%emt 0:00:08][%cal Og6g5]} 31. Be4 {[%emt 0:00:00]} Nf5 {[%emt 0:00:18]} 32. Bxf5 {[%emt 0:00:00]} gxf5 {[%emt 0:00:08]} (32... Rxf5 33. Rxd6 Ref8 (33... Bxd6 34. Rxe8+ Kg7 35. Re6 $11) 34. Rd7 $15) 33. Kg2 {[%emt 0:00:00]} Re6 {[%emt 0:00:15] Droht stark ...Rh6.} 34. Kf3 $2 {[%emt 0:00:00]} (34. Re3) 34... Rh6 {[%emt 0:00:07]} 35. Bf2 {[%emt 0:00:00]} Rxh3+ {[%emt 0:00:09]} 36. Kg2 {[%emt 0:00:00]} Rh2+ {[%emt 0:00:04]} 37. Kf1 {[%emt 0:00:00]} Rg8 {[%emt 0:00:04]} 38. Ke2 {[%emt 0:00:00]} Rgg2 {[%emt 0:00:04]} 39. Rf1 {[%emt 0:00:00]} Bg3 {[%emt 0:00:03][%cal Rg3f2]} 40. Kf3 {[%emt 0:00:00]} Bxf2 {[%emt 0:00:03]} 41. Rxd6 {[%emt 0:00:37]} Bd4 {[%emt 0:00:53] [#] Zielt auf ...Be5 ab.} 42. Rxb6 {[%emt 0:00:40]} Rf2+ {[%emt 0:00:05]} (42... Be5 $142 43. Rb8+ Kg7 (43... Bxb8 44. Ke3 Re2+ 45. Kd3 Rd2+ 46. Ke3 Rhe2+ 47. Kf3 Rxa2 48. Rd1 Rf2+ 49. Ke3 Bf4+ 50. Kd3 Rf3#) 44. Ke3 Re2+ (44... Bxb8 $2 45. Rxf5 Rh4 46. b4 $19) 45. Kd3 Bd4 (45... Bxb8 $2 46. Rxf5 Be5 47. Rf1 $19) 46. Rf2 Rhxf2 (46... Rexf2 {führt zum Matt.} 47. Rb7+ Kf6 48. Rb6+ Kg5 49. Rg6+ hxg6 50. a4 Rh3#) (46... Re3+ {wird mattgesetzt.} 47. Kd2 Rxf2+ 48. Kd1 Bc3 49. Rb7+ Kg6 50. Rb6+ Kh5 51. Re6 Rxe6 52. Kc1 Re1#) 47. Rb7+ Kg6 48. Rb6+ Kg5 49. Rg6+ hxg6 50. a4 Re3#) 43. Rxf2 {[%emt 0:00:02]} Rxf2+ {[%emt 0:00:02][%mdl 4096] Endspiel. KRB-KR} 44. Kg3 {[%emt 0:00:03]} Rxa2 {[%emt 0:00:02]} 45. Kf4 {[%emt 0:00:09]} Rf2+ {[%emt 0:00:24]} 46. Kg5 {[%emt 0:00:07]} Kg7 {[%emt 0:00:02]} 47. Rb7+ {[%emt 0:00:04]} Kg8 {[%emt 0:00:01]} 48. Rb8+ {[%emt 0:00:08]} Kf7 {[%emt 0:00:02]} 49. Rb7+ {[%emt 0:00:01]} Ke6 {[%emt 0:00:01] ( -> ...Bf6+)} 50. Rxh7 {[%emt 0:00:17]} Bf6+ {[%emt 0:00:08] Schwarz setzt Matt.} 51. Kg6 {[%emt 0:00:18]} Rg2+ {[%emt 0:00:03]} 52. Kh5 {[%emt 0:00:07]} Rh2+ {[%emt 0:00:03] Gewichteter Fehlerwert: Weiß=0.75/Schwarz=0.19 (sehr präzise) .  Fehler:       	Weiß=2     	Schwarz=1     Ungenau:       	Weiß=4     	---        OK:         	Weiß=7     	Schwarz=13    Bester:       	---       	Schwarz=2} (52... f4 $142 53. Rc7 f3 54. Kh6 f2 55. Rxc5 f1=Q (55... f1=R {ist ein Selbstmatt.} 56. Rxa5 Bg7+ 57. Kh7 Rh1+ 58. Rh5 Rxh5+ 59. Kg8 Rh8#) 56. Rc6+ Kd7 57. Rd6+ Kxd6 58. c5+ Ke5 59. Kh7 Qh1#) 0-1

[Event "13th All African Mixed Team Rapid-ch 202"]
[Site "Accra"]
[Date "2024.03.09"]
[Round "2.4"]
[White "Junior, Ednasia"]
[Black "Benson, Maud"]
[Result "1-0"]
[ECO "A22"]
[WhiteElo "1915"]
[BlackElo "1664"]
[Annotator "RC"]
[PlyCount "105"]
[EventDate "2024.03.07"]
[EventType "rapid"]
[EventCountry "GHA"]
[SourceTitle "playchess.com"]
[Source "ChessBase"]
[SourceQuality "1"]
[TimeControl "900+10"]

1. e4 {[%emt 0:00:03]} d6 {[%emt 0:00:04]} 2. c4 {[%emt 0:00:20]} e5 {[%emt 0:00:12]} 3. d3 {[%emt 0:00:11]} Nf6 {[%emt 0:00:05]} 4. Nc3 {[%emt 0:00:02]} Be7 {[%emt 0:00:16]} 5. g3 {[%emt 0:00:02]} O-O {[%emt 0:00:04]} 6. Bg2 {[%emt 0:00:00]} c6 {[%emt 0:00:13]} 7. Nge2 {[%emt 0:00:22]} Nbd7 {[%emt 0:01:29]} 8. O-O {[%emt 0:00:16]} Nc5 {[%emt 0:00:49]} 9. h3 {[%emt 0:01:27]} Bd7 {[%emt 0:01:10]} 10. Kh2 {[%emt 0:00:18]} b5 {[%emt 0:01:03]} 11. Qc2 {[%emt 0:03:12]} Rc8 {[%emt 0:00:46]} 12. Nd1 {[%emt 0:02:01]} Be6 {[%emt 0:02:08]} 13. f4 {[%emt 0:02:11]} d5 {[%emt 0:00:53]} 14. fxe5 {[%emt 0:00:26]} Nfd7 {[%emt 0:04:34]} 15. cxb5 {[%emt 0:04:31]} dxe4 {[%emt 0:01:01]} 16. d4 {[%emt 0:00:29]} Nd3 {[%emt 0:00:31]} 17. Bxe4 {[%emt 0:00:28]} Nxc1 {[%emt 0:00:26]} 18. Qxc1 {[%emt 0:00:53]} cxb5 {[%emt 0:00:08]} 19. Qe3 {[%emt 0:00:16]} Nb6 {[%emt 0:00:16]} 20. b3 {[%emt 0:00:04]} Nd5 {[%emt 0:00:04]} 21. Qd3 {[%emt 0:00:19]} Qd7 {[%emt 0:00:15]} 22. Bxh7+ {[%emt 0:00:08]} Kh8 {[%emt 0:00:01]} 23. Bf5 {[%emt 0:00:02]} g6 {[%emt 0:01:03]} 24. Bxe6 {[%emt 0:00:03]} Qxe6 {[%emt 0:00:02]} 25. Ne3 {[%emt 0:00:18]} Kg7 {[%emt 0:00:25]} 26. Nf4 {[%emt 0:00:06]} Nxf4 {[%emt 0:00:10]} 27. Rxf4 {[%emt 0:00:05]} Bg5 {[%emt 0:00:09]} 28. Rf3 {[%emt 0:00:22]} b4 {[%emt 0:00:01]} 29. Nc4 {[%emt 0:00:06]} Rc6 {[%emt 0:01:14]} 30. d5 {[%emt 0:00:10]} Rd8 {[%emt 0:00:19]} 31. Rd1 {[%emt 0:00:43]} Qe8 {[%emt 0:00:10]} 32. Qe2 {[%emt 0:00:10]} Rcc8 {[%emt 0:00:07]} 33. Qf1 {[%emt 0:00:10]} Rd7 {[%emt 0:00:14]} 34. Kh1 {[%emt 0:00:04]} Rcd8 {[%emt 0:00:02]} 35. Rfd3 {[%emt 0:00:14]} Qf8 {[%emt 0:00:08]} 36. Qe2 {[%emt 0:00:11]} Qc5 {[%emt 0:00:03]} 37. Qg2 {[%emt 0:00:18]} Re8 {[%emt 0:00:09]} 38. d6 {[%emt 0:00:04]} f6 {[%emt 0:00:18]} 39. Rd5 {[%emt 0:00:09]} Qc8 {[%emt 0:00:07]} 40. h4 {[%emt 0:00:08]} Bh6 {[%emt 0:00:01]} 41. exf6+ {[%emt 0:00:02]} Kxf6 {[%emt 0:00:01]} 42. Rf1+ {[%emt 0:00:05]} Kg7 {[%emt 0:00:01]} 43. Qb2+ {[%emt 0:00:04]} Kh7 {[%emt 0:00:05]} 44. Qc2 {[%emt 0:00:13]} Re6 {[%emt 0:00:07]} 45. Kg2 {[%emt 0:00:09]} Bg7 {[%emt 0:00:25]} 46. h5 {[%emt 0:00:09]} Qc6 {[%emt 0:00:14]} 47. hxg6+ {[%emt 0:00:09]} Rxg6 {[%emt 0:00:03]} 48. Qf5 {[%emt 0:00:23]} Bf6 {[%emt 0:00:34]} 49. Rf3 {[%emt 0:00:13]} Kg7 {[%emt 0:00:19]} 50. Rc5 {[%emt 0:00:22]} Qb7 {[%emt 0:00:16]} 51. Qxd7+ {[%emt 0:00:13]} Qxd7 {[%emt 0:00:02]} 52. Rc7 {[%emt 0:00:01]} Qxc7 {[%emt 0:00:15]} 53. dxc7 {[%emt 0:00:01]} 1-0